fUST/lending_fUST_20260113
["ID","MTS","AMOUNT","RATE_DAILY","PERIOD"]
[401492751,1768267838783,-300.0,0.00010184,2]
[401492752,1768267838793,-600.0,0.00010184,2]
[401492753,1768267838802,-50000.0,0.00010184,2]
[401492754,1768267838811,-292.84307729,0.00010514,2]
[401492755,1768267838821,-461.14090103,0.00010928,2]
[401492756,1768267838831,-300.0,0.00010983,2]
[401492757,1768267838841,-420.0,0.00010983,2]
[401492758,1768267838851,-1680.0,0.00010983,2]
[401492759,1768267838860,-151.0,0.00011025,2]
[401492760,1768267838870,-151.0,0.00011025,2]
[401492761,1768267838880,-151.0,0.00011025,2]
[401492762,1768267838890,-151.0,0.00011025,2]
[401492763,1768267838899,-151.0,0.00011025,2]
[401492764,1768267838909,-151.0,0.00011025,2]
[401492765,1768267838919,-151.0,0.00011025,2]
[401492766,1768267838928,-172.78749649,0.00011025,2]
[401492767,1768267838938,-500.0,0.00011028,2]
[401492768,1768267838949,-195942.7242862,0.00011032,2]
[401492769,1768267838960,-461.14090102,0.00011162,2]
[401492770,1768267838971,-151.0,0.000112,2]
[401492771,1768267838981,-720.0,0.00011203,2]
[401492772,1768267838993,-151.0,0.000113,2]
[401492773,1768267839003,-461.14090102,0.00011396,2]
[401492774,1768267839014,-151.0,0.000114,2]
[401492775,1768267839025,-151.0,0.000115,2]
[401492776,1768267839036,-151.0,0.000116,2]
[401492777,1768267839047,-461.14090102,0.00011629,2]
[401492778,1768267839058,-500.0,0.00011652,2]
[401492779,1768267839067,-817.04683802,0.00011688,2]
[401492780,1768267839076,-151.0,0.000117,2]
[401492781,1768267839086,-500.0,0.00011789,2]
[401492782,1768267839096,-151.0,0.000118,2]
[401492783,1768267839105,-1000.0,0.000118,2]
[401492784,1768267839114,-461.14090102,0.00011863,2]
[401492785,1768267839124,-151.0,0.000119,2]
[401492786,1768267839134,-500.0,0.00011926,2]
[401492787,1768267839144,-214.32301538,0.00011961,2]
[401492788,1768267839154,-763.050965,0.00011963,2]
[401492789,1768267839164,-4381.0842953,0.00011963,2]
[401492790,1768267839173,-14087.6061678,0.00011963,2]
[401492791,1768267839183,-151.0,0.00012,2]
[401492792,1768267839193,-151.0,0.00012,2]
[401492793,1768267839203,-151.0,0.00012,2]
[401492794,1768267839213,-151.0,0.00012,2]
[401492795,1768267839227,-151.0,0.00012,2]
[401492796,1768267839238,-151.0,0.00012,2]
[401492797,1768267839249,-151.0,0.00012,2]
[401492798,1768267839260,-151.0,0.00012,2]
[401492799,1768267839269,-151.0,0.00012,2]
[401492800,1768267839279,-151.0,0.00012,2]
[401492801,1768267839288,-500.0,0.00012063,2]
[401492802,1768267839299,-587.0,0.00012081,2]
[401492803,1768267839309,-2351.0,0.00012081,2]
[401492804,1768267839319,-211.32015771,0.00012099,2]
[401492805,1768267839329,-864.0,0.00012323,2]
[401492806,1768267839340,-327.49391201,0.00012329,2]
[401492807,1768267839349,-1031.16884041,0.00012398,2]
[401492808,1768267839457,-345.55483121,0.00012514,2]
[401492809,1768267839467,-7143.91308147,0.00013,2]
[401492810,1768267839479,-500.0,0.00013273,2]
[401492811,1768267839488,-500.0,0.00013273,2]
[401492812,1768267839497,-500.0,0.00013273,2]
[401492813,1768267839507,-500.0,0.00013273,2]
[401492814,1768267839517,-587.83194945,0.00013273,2]
[401492815,1768267839527,-500.0,0.00013273,2]
[401492816,1768267839536,-500.0,0.00013273,2]
[401492817,1768267839546,-500.0,0.00013273,2]
[401492818,1768267839556,-500.0,0.00013273,2]
[401492819,1768267839565,-500.0,0.00013273,2]
[401492820,1768267839575,-500.0,0.00013273,2]
[401492821,1768267839584,-500.0,0.00013273,2]
[401492822,1768267839594,-500.0,0.00013273,2]
[401492823,1768267839603,-500.0,0.00013273,2]
[401492825,1768267839613,-500.0,0.00013273,2]
[401492828,1768267839623,-500.0,0.00013273,2]
[401492832,1768267839633,-500.0,0.00013273,2]
[401492836,1768267839642,-500.0,0.00013273,2]
[401492839,1768267839651,-500.0,0.00013273,2]
[401492841,1768267839660,-500.0,0.00013273,2]
[401492843,1768267839669,-500.0,0.00013273,2]
[401492844,1768267839680,-500.0,0.00013273,2]
[401492845,1768267839690,-500.0,0.00013273,2]
[401492846,1768267839701,-500.0,0.00013273,2]
[401492847,1768267839711,-500.0,0.00013273,2]
[401492848,1768267839721,-500.0,0.00013273,2]
[401492849,1768267839731,-500.0,0.00013273,2]
[401492850,1768267839740,-500.0,0.00013273,2]
[401492851,1768267839750,-500.0,0.00013273,2]
[401492852,1768267839759,-500.0,0.00013273,2]
[401492853,1768267839768,-500.0,0.00013273,2]
[401492854,1768267839777,-400.46467622,0.00013273,2]
[401492855,1768267839787,-500.0,0.00013273,2]
[401492856,1768267839796,-500.0,0.00013273,2]
[401492857,1768267839805,-500.0,0.00013273,2]
[401492858,1768267839814,-500.0,0.00013273,2]
[401492859,1768267839824,-500.0,0.00013273,2]
[401492860,1768267839833,-500.0,0.00013273,2]
[401492861,1768267839843,-500.0,0.00013273,2]
[401492863,1768267839852,-500.0,0.00013273,2]
[401492865,1768267839861,-500.0,0.00013273,2]
[401492867,1768267839870,-500.0,0.00013273,2]
[401492868,1768267839879,-500.0,0.00013273,2]
[401492870,1768267839889,-500.0,0.00013273,2]
[401492872,1768267839898,-500.0,0.00013273,2]
[401492874,1768267839908,-500.0,0.00013273,2]
[401492876,1768267839917,-500.0,0.00013273,2]
[401492877,1768267839927,-823.0,0.00013289,2]
[401492879,1768267839936,-250.0,0.00013348,2]
[401492881,1768267839946,-763.050965,0.00013389,2]
[401492883,1768267839955,-977.5520404,0.00013529,2]
[401492885,1768267839964,-1000.0,0.00013555,2]
[401492887,1768267839973,-300.0,0.00013673,2]
[401492888,1768267839982,-500.0,0.00013698,2]
[401492890,1768267839991,-500.0,0.00013698,2]
[401492892,1768267840000,-500.0,0.00013698,2]
[401492894,1768267840009,-500.0,0.00013698,2]
[401492896,1768267840018,-500.0,0.00013698,2]
[401492898,1768267840027,-500.0,0.00013698,2]
[401492900,1768267840036,-500.0,0.00013698,2]
[401492902,1768267840046,-500.0,0.00013698,2]
[401492904,1768267840055,-500.0,0.00013698,2]
[401492906,1768267840066,-500.0,0.00013698,2]
[401492908,1768267840075,-500.0,0.00013698,2]
[401492910,1768267840085,-500.0,0.00013698,2]
[401492912,1768267840094,-500.0,0.00013698,2]
[401492914,1768267840103,-500.0,0.00013698,2]
[401492916,1768267840112,-500.0,0.00013698,2]
[401492918,1768267840121,-505.24717796,0.00013698,2]
[401492920,1768267840130,-13589.4097455,0.00013699,2]
[401492922,1768267840139,-500.0,0.00013699,2]
[401492924,1768267840148,-500.0,0.00013699,2]
[401492926,1768267840157,-500.0,0.00013699,2]
[401492928,1768267840166,-500.0,0.00013699,2]
[401492930,1768267840175,-500.0,0.00013699,2]
[401492932,1768267840185,-500.0,0.00013699,2]
[401492934,1768267840194,-252.89893897,0.00013699,2]
[401492936,1768267840203,-500.0,0.00013699,2]
[401492939,1768267840212,-500.0,0.00013699,2]
[401492941,1768267840225,-610.75742393,0.00013699,2]
[401492944,1768267840234,-500.0,0.00013699,2]
[401492947,1768267840244,-500.0,0.00013699,2]
[401492949,1768267840253,-500.0,0.00013699,2]
[401492951,1768267840263,-500.0,0.00013699,2]
[401492953,1768267840272,-500.0,0.00013699,2]
[401492955,1768267840281,-500.0,0.00013699,2]
[401492957,1768267840291,-500.0,0.00013699,2]
[401492959,1768267840300,-500.0,0.00013699,2]
[401492961,1768267840309,-500.0,0.00013699,2]
[401492963,1768267840319,-500.0,0.00013699,2]
[401492965,1768267840328,-500.0,0.00013699,2]
[401492967,1768267840337,-500.0,0.00013699,2]
[401492969,1768267840347,-500.0,0.00013699,2]
[401492971,1768267840357,-500.0,0.00013699,2]
[401492973,1768267840367,-500.0,0.00013699,2]
[401492975,1768267840376,-500.0,0.00013699,2]
[401492977,1768267840385,-500.0,0.00013699,2]
[401492979,1768267840395,-500.0,0.00013699,2]
[401492981,1768267840405,-502.65928848,0.00013699,2]
[401492983,1768267840414,-227.11320444,0.00013699,2]
[401492985,1768267840423,-500.0,0.00013699,2]
[401492987,1768267840433,-500.0,0.00013699,2]
[401492989,1768267840443,-500.0,0.00013699,2]
[401492991,1768267840452,-500.0,0.00013699,2]
[401492993,1768267840461,-500.0,0.00013699,2]
[401492995,1768267840470,-500.0,0.00013699,2]
[401492997,1768267840479,-461.16799506,0.00013699,2]
[401492999,1768267840488,-500.0,0.00013699,2]
[401493001,1768267840497,-500.0,0.00013699,2]
[401493003,1768267840507,-500.0,0.00013699,2]
[401493005,1768267840515,-500.0,0.00013699,2]
[401493007,1768267840524,-612.0897626,0.00013699,2]
[401493009,1768267840534,-500.0,0.00013699,2]
[401493011,1768267840543,-500.0,0.00013699,2]
[401493013,1768267840552,-500.0,0.00013699,2]
[401493015,1768267840561,-500.0,0.00013699,2]
[401493017,1768267840570,-298.79354709,0.00013699,2]
[401493019,1768267840580,-500.0,0.00013699,2]
[401493021,1768267840589,-500.0,0.00013699,2]
[401493023,1768267840598,-500.0,0.00013699,2]
[401493025,1768267840607,-159.64533136,0.00013699,2]
[401493027,1768267840616,-500.0,0.00013699,2]
[401493029,1768267840625,-500.28128039,0.00013699,2]
[401493031,1768267840635,-500.0,0.00013699,2]
[401493034,1768267840652,-500.0,0.00013699,2]
[401493037,1768267840664,-500.0,0.00013699,2]
[401493039,1768267840674,-500.0,0.00013699,2]
[401493041,1768267840683,-441.99834149,0.00013699,2]
[401493043,1768267840693,-500.0,0.00013699,2]
[401493045,1768267840702,-500.0,0.00013699,2]
[401493047,1768267840712,-500.0,0.00013699,2]
[401493049,1768267840721,-501.77596466,0.00013699,2]
[401493051,1768267840730,-500.0,0.00013699,2]
[401493053,1768267840740,-500.0,0.00013699,2]
[401493055,1768267840749,-500.0,0.00013699,2]
[401493057,1768267840759,-313.26668117,0.00013699,2]
[401493059,1768267840769,-500.0,0.00013699,2]
[401493061,1768267840778,-500.0,0.00013699,2]
[401493063,1768267840789,-367.67596865,0.00013699,2]
[401493065,1768267840799,-500.0,0.00013699,2]
[401493067,1768267840808,-500.0,0.00013699,2]
[401493069,1768267840819,-500.0,0.00013699,2]
[401493071,1768267840828,-500.0,0.00013699,2]
[401493073,1768267840837,-500.0,0.00013699,2]
[401493075,1768267840846,-296.2401009,0.00013699,2]
[401493077,1768267840856,-500.0,0.00013699,2]
[401493080,1768267840866,-500.0,0.0001382,2]
[401493082,1768267840876,-435.63031957,0.0001382,2]
[401493084,1768267840886,-500.0,0.0001382,2]
[401493086,1768267840896,-500.0,0.0001382,2]
[401493088,1768267840905,-500.0,0.0001382,2]
[401493090,1768267840916,-592.36923424,0.0001382,2]
[401493092,1768267840925,-500.0,0.0001382,2]
[401493094,1768267840934,-500.0,0.0001382,2]
[401493096,1768267840944,-500.0,0.0001382,2]
[401493098,1768267840954,-500.0,0.0001382,2]
[401493100,1768267840964,-1000.0,0.00013821,2]
[401493102,1768267840973,-1113.91769968,0.00013821,2]
[401493104,1768267840982,-1000.0,0.00013821,2]
[401493106,1768267840992,-290.33203274,0.00013821,2]
[401493109,1768267841002,-1000.0,0.00013821,2]
[401493111,1768267841012,-1000.0,0.00013821,2]
[401493113,1768267841022,-1000.0,0.00013821,2]
[401493115,1768267841031,-1000.0,0.00013821,2]
[401493117,1768267841040,-1000.0,0.00013821,2]
[401493119,1768267841050,-1000.0,0.00013821,2]
[401493121,1768267841060,-1000.0,0.00013821,2]
[401493123,1768267841069,-1000.0,0.00013821,2]
[401493125,1768267841079,-1000.0,0.00013821,2]
[401493127,1768267841089,-1000.0,0.00013821,2]
[401493129,1768267841100,-1000.0,0.00013821,2]
[401493131,1768267841110,-303.88205907,0.00013821,2]
[401493133,1768267841119,-1000.0,0.00013821,2]
[401493135,1768267841129,-1000.0,0.00013821,2]
[401493137,1768267841138,-1000.0,0.00013821,2]
[401493139,1768267841147,-798.59280651,0.00013821,2]
[401493141,1768267841162,-1000.0,0.00013821,2]
[401493143,1768267841172,-1000.0,0.00013821,2]
[401493145,1768267841182,-1000.0,0.00013821,2]
[401493148,1768267841192,-1000.0,0.00013821,2]
[401493149,1768267841202,-958.38483251,0.00013821,2]
[401493152,1768267841211,-1000.0,0.00013821,2]
[401493154,1768267841223,-1000.0,0.00013821,2]
[401493156,1768267841233,-332.40668052,0.00013821,2]
[401493158,1768267841243,-1000.0,0.00013821,2]
[401493160,1768267841253,-1000.0,0.00013821,2]
[401493162,1768267841264,-1000.0,0.00013821,2]
[401493164,1768267841274,-1000.0,0.00013821,2]
[401493166,1768267841283,-1000.0,0.00013821,2]
[401493168,1768267841294,-1000.0,0.00013821,2]
[401493170,1768267841304,-1000.0,0.00013821,2]
[401493172,1768267841314,-681.0016986,0.00013821,2]
[401493174,1768267841324,-1000.0,0.00013821,2]
[401493176,1768267841333,-1000.0,0.00013821,2]
[401493178,1768267841343,-1000.0,0.00013821,2]
[401493180,1768267841354,-1001.09633075,0.00013821,2]
[401493182,1768267841363,-218.1213433,0.00013878,2]
[401493183,1768267841373,-294.20360383,0.00013973,2]
[401493184,1768267841383,-600.0,0.00014221,2]
[401493185,1768267841392,-1017.77857831,0.00014247,2]
[401493186,1768267841403,-501.52224721,0.00014247,2]
[401493187,1768267841412,-1000.0,0.00014247,2]
[401493188,1768267841422,-1000.0,0.00014247,2]
[401493189,1768267841431,-1000.0,0.00014247,2]
[401493190,1768267841441,-1000.0,0.00014247,2]
[401493191,1768267841451,-1000.0,0.00014247,2]
[401493192,1768267841461,-1000.0,0.00014247,2]
[401493193,1768267841471,-581.34216933,0.00014247,2]
[401493194,1768267841481,-1000.0,0.00014247,2]
[401493195,1768267841491,-353.02410941,0.00014247,2]
[401493196,1768267841501,-1000.0,0.00014247,2]
[401493197,1768267841511,-1000.0,0.00014247,2]
[401493198,1768267841520,-1000.0,0.00014247,2]
[401493199,1768267841530,-250.0,0.00014247,2]
[401493201,1768267841667,-1000.0,0.00014247,2]
[401493202,1768267841677,-1000.0,0.00014247,2]
[401493204,1768267841687,-500.93038909,0.00014247,2]
[401493206,1768267841697,-1000.512985,0.00014247,2]
[401493208,1768267841706,-1002.56553603,0.00014247,2]
[401493210,1768267841715,-1000.0,0.00014247,2]
[401493212,1768267841725,-1000.0,0.00014247,2]
[401493214,1768267841734,-500.0,0.00014247,2]
[401493216,1768267841745,-875.76793412,0.00014247,2]
[401493218,1768267841763,-1000.0,0.00014247,2]
[401493220,1768267841778,-1000.0,0.00014247,2]
[401493222,1768267841787,-1014.57441802,0.00014247,2]
[401493224,1768267841796,-1000.0,0.00014247,2]
[401493226,1768267841805,-1000.0,0.00014247,2]
[401493228,1768267841815,-276.29994154,0.00014247,2]
[401493231,1768267841824,-1000.0,0.00014247,2]
[401493232,1768267841833,-1000.0,0.00014247,2]
[401493234,1768267841842,-1029.61129365,0.00014247,2]
[401493236,1768267841862,-1002.38932755,0.00014247,2]
[401493238,1768267841871,-1000.0,0.00014247,2]
[401493240,1768267841881,-999.83703447,0.00014247,2]
[401493242,1768267841890,-1000.0,0.00014247,2]
[401493244,1768267841900,-1000.0,0.00014247,2]
[401493246,1768267841909,-1000.0,0.00014247,2]
[401493248,1768267841918,-1000.0,0.00014247,2]
[401493250,1768267841927,-1000.0,0.00014247,2]
[401493252,1768267841937,-1000.0,0.00014247,2]
[401493254,1768267841946,-1000.0,0.00014247,2]
[401493256,1768267841956,-1000.0,0.00014247,2]
[401493259,1768267841966,-1000.76361488,0.00014247,2]
[401493260,1768267841976,-1000.0,0.00014247,2]
[401493263,1768267841987,-647.12625165,0.00014247,2]
[401493265,1768267841999,-1000.0,0.00014247,2]
[401493266,1768267842008,-1000.0,0.00014247,2]
[401493268,1768267842017,-1000.0,0.00014247,2]
[401493270,1768267842026,-1000.0,0.00014247,2]
[401493272,1768267842035,-1000.0,0.00014247,2]
[401493274,1768267842044,-1000.0,0.00014247,2]
[401493276,1768267842054,-1000.0,0.00014247,2]
[401493278,1768267842065,-1000.0,0.00014247,2]
[401493280,1768267842075,-346.38117913,0.00014247,2]
[401493282,1768267842084,-1006.57632602,0.00014247,2]
[401493284,1768267842093,-1000.0,0.00014247,2]
[401493286,1768267842103,-1138.93332582,0.00014247,2]
[401493288,1768267842112,-1500.0,0.00014368,2]
[401493290,1768267842121,-423.32811707,0.00014368,2]
[401493292,1768267842131,-1500.0,0.00014368,2]
[401493294,1768267842140,-401.64301006,0.00014368,2]
[401493296,1768267842150,-1177.20505665,0.00014368,2]
[401493298,1768267842160,-1485.3091038,0.00014368,2]
[401493300,1768267842170,-1500.0,0.00014368,2]
[401493302,1768267842179,-1603.18109463,0.00014368,2]
[401493304,1768267842190,-1500.0,0.00014368,2]
[401493306,1768267842199,-763.96834089,0.00014368,2]
[401493308,1768267842215,-1500.0,0.00014368,2]
[401493311,1768267842237,-500.80134157,0.00014368,2]
[401493313,1768267842254,-1121.35319303,0.00014368,2]
[401493315,1768267842263,-500.0,0.00014368,2]
[401493317,1768267842275,-1500.0,0.00014368,2]
[401493319,1768267842285,-504.59320272,0.00014368,2]
[401493321,1768267842294,-1500.0,0.00014368,2]
[401493323,1768267842304,-1500.0,0.00014368,2]
[401493325,1768267842313,-1000.0,0.00014368,2]
[401493327,1768267842322,-1500.0,0.00014368,2]
[401493329,1768267842331,-1500.0,0.00014368,2]
[401493331,1768267842340,-1500.0,0.00014368,2]
[401493333,1768267842349,-1500.0,0.00014368,2]
[401493334,1768267842357,-1500.0,0.00014368,2]
[401493337,1768267842367,-1500.0,0.00014368,2]
[401493339,1768267842376,-1501.96202407,0.00014368,2]
[401493340,1768267842386,-1503.82096897,0.00014368,2]
[401493342,1768267842395,-1500.0,0.00014368,2]
[401493344,1768267842404,-1500.0,0.00014368,2]
[401493346,1768267842414,-1500.0,0.00014368,2]
[401493348,1768267842423,-1001.124693,0.00014368,2]
[401493350,1768267842433,-5000.0,0.0001451,2]
[401493352,1768267842443,-398.26658512,0.00014514,2]
[401493354,1768267842453,-100000.0,0.0001459,2]
[401493356,1768267842463,-3143.3698203,0.00014601,2]
[401493359,1768267842472,-1152.0,0.00014618,2]
[401493361,1768267842486,-900.0,0.00014768,2]
[401493364,1768267842499,-1000.0,0.00014795,2]
[401493366,1768267842509,-575.12204215,0.00014795,2]
[401493368,1768267842518,-158.4999436,0.00014795,2]
[401493370,1768267842527,-1000.0,0.00014795,2]
[401493372,1768267842536,-1500.0,0.00014795,2]
[401493374,1768267842546,-1500.0,0.00014795,2]
[401493376,1768267842556,-500.0,0.00014795,2]
[401493378,1768267842565,-500.0,0.00014795,2]
[401493380,1768267842575,-1500.0,0.00014795,2]
[401493382,1768267842584,-1500.0,0.00014795,2]
[401493383,1768267842593,-1500.0,0.00014795,2]
[401493385,1768267842603,-1500.0,0.00014795,2]
[401493387,1768267842612,-1500.0,0.00014795,2]
[401493389,1768267842620,-1500.0,0.00014795,2]
[401493391,1768267842629,-1121.58832465,0.00014795,2]
[401493393,1768267842637,-1500.0,0.00014795,2]
[401493395,1768267842647,-675.05887209,0.00014795,2]
[401493397,1768267842656,-1500.0,0.00014795,2]
[401493400,1768267842670,-1500.0,0.00014795,2]
[401493402,1768267842684,-964.41428729,0.00014795,2]
[401493406,1768267842708,-1500.0,0.00014795,2]
[401493409,1768267842726,-1500.0,0.00014795,2]
[401493411,1768267842739,-1001.21372141,0.00014795,2]
[401493414,1768267842754,-1501.05825586,0.00014795,2]
[401493417,1768267842771,-1501.37309074,0.00014795,2]
[401493419,1768267842785,-1510.88603555,0.00014795,2]
[401493422,1768267842799,-1501.07329745,0.00014795,2]
[401493424,1768267842814,-711.54421666,0.00014795,2]
[401493427,1768267842828,-1501.40641457,0.00014795,2]
[401493429,1768267842842,-1500.0,0.00014795,2]
[401493432,1768267842856,-1500.0,0.00014795,2]
[401493434,1768267842869,-500.93199732,0.00014795,2]
[401493437,1768267842881,-1500.98173226,0.00014795,2]
[401493439,1768267842895,-763.050965,0.00014814,2]
[401493442,1768267842910,-151.48350527,0.000149,2]
[401493444,1768267842924,-151.48350527,0.000149,2]
[401493447,1768267842939,-1000.0,0.00014911,2]
[401493449,1768267842952,-244.0,0.00014911,2]
[401493452,1768267842963,-155.72124395,0.00014916,2]
[401493453,1768267842974,-500.0,0.00014916,2]
[401493455,1768267842984,-1466.62413338,0.00014916,2]
[401493457,1768267842996,-2000.0,0.00014916,2]
[401493459,1768267843009,-2000.0,0.00014916,2]
[401493462,1768267843023,-2000.0,0.00014916,2]
[401493464,1768267843036,-2000.0,0.00014916,2]
[401493466,1768267843050,-2000.0,0.00014916,2]
[401493469,1768267843063,-2000.0,0.00014916,2]
[401493471,1768267843076,-500.0,0.00014916,2]
[401493473,1768267843090,-1113.36442406,0.00014916,2]
[401493476,1768267843103,-2000.0,0.00014916,2]
[401493478,1768267843116,-2000.0,0.00014916,2]
[401493480,1768267843126,-500.0,0.00014916,2]
[401493482,1768267843137,-2000.0,0.00014916,2]
[401493484,1768267843148,-2000.0,0.00014916,2]
[401493487,1768267843165,-2000.0,0.00014916,2]
[401493489,1768267843179,-163.0,0.00015,2]
[401493492,1768267843192,-161.900775,0.00015068,2]
[401493494,1768267843204,-701.3806114,0.00015189,2]
[401493496,1768267843215,-303.3619795,0.00015316,2]
[401493498,1768267843230,-1000.0,0.00015342,2]
[401493501,1768267843245,-1000.0,0.00015342,2]
[401493503,1768267843257,-1026.41190133,0.00015342,2]
[401493505,1768267843269,-737.22168392,0.00015342,2]
[401493507,1768267843280,-1500.0,0.00015342,2]
[401493510,1768267843291,-1000.0,0.00015342,2]
[401493512,1768267843303,-507.57819343,0.00015342,2]
[401493514,1768267843315,-500.0,0.00015342,2]
[401493516,1768267843328,-2000.0,0.00015342,2]
[401493519,1768267843341,-2000.0,0.00015342,2]
[401493521,1768267843353,-1000.0,0.00015464,2]
[401493523,1768267843365,-2021.14150026,0.00015464,2]
[401493526,1768267843378,-2500.0,0.00015464,2]
[401493528,1768267843391,-1000.0,0.00015464,2]
[401493530,1768267843402,-2500.0,0.00015464,2]
[401493532,1768267843415,-1000.0,0.00015464,2]
[401493535,1768267843427,-1000.0,0.00015464,2]
[401493537,1768267843439,-376.21269073,0.00015464,2]
[401493539,1768267843451,-2500.0,0.00015464,2]
[401493541,1768267843463,-2500.0,0.00015464,2]
[401493544,1768267843475,-2500.0,0.00015464,2]
[401493546,1768267843489,-2500.0,0.0001589,2]
[401493548,1768267843501,-1002.43140219,0.0001589,2]
[401493550,1768267843514,-500.0,0.00016012,2]
[401493553,1768267843526,-2000.0,0.00016012,2]
[401493555,1768267843538,-3000.0,0.00016012,2]
[401493557,1768267843549,-3000.0,0.00016012,2]
[401493559,1768267843560,-3000.0,0.00016012,2]
[401493561,1768267843571,-181.08010149,0.00016052,2]
[401493563,1768267843582,-216.47688675,0.00016052,2]
[401493565,1768267843593,-187.78006525,0.00016052,2]
[401493567,1768267843604,-194.72792766,0.00016052,2]
[401493570,1768267843615,-201.93286099,0.00016052,2]
[401493572,1768267843625,-209.40437684,0.00016052,2]
[401493574,1768267843641,-217.15233878,0.00016052,2]
[401493576,1768267843652,-225.18697532,0.00016052,2]
[401493578,1768267843664,-233.51889341,0.00016052,2]
[401493580,1768267843676,-242.15909246,0.00016052,2]
[401493583,1768267843688,-251.11897888,0.00016052,2]
[401493585,1768267843700,-260.4103811,0.00016052,2]
[401493587,1768267843711,-270.0455652,0.00016052,2]
[401493589,1768267843724,-280.03725112,0.00016052,2]
[401493591,1768267843735,-290.39862941,0.00016052,2]
[401493593,1768267843746,-301.1433787,0.00016052,2]
[401493596,1768267843757,-2398.4119403,0.00016052,2]
[401493598,1768267843769,-496.47127164,0.00016052,2]
[401493600,1768267843781,-1613.0,0.0001608,2]
[401493602,1768267843792,-763.050965,0.0001624,2]
[401493604,1768267843804,-1000.0,0.00016402,2]
[401493607,1768267843817,-492.0,0.00016402,2]
[401493609,1768267843830,-500.0,0.00016438,2]
[401493611,1768267843841,-395.33329866,0.00016438,2]
[401493613,1768267843852,-151.0,0.00016438,2]
[401493615,1768267843863,-3000.0,0.00016438,2]
[401493617,1768267843875,-450.97833903,0.00016514,2]
[401493620,1768267843886,-1041.66666667,0.00016524,2]
[401493622,1768267843899,-509.17780676,0.0001656,2]
[401493624,1768267843911,-1041.72224603,0.0001656,2]
[401493640,1768267844053,-2511.02649148,0.0001656,2]
[401493643,1768267844068,-2487.15318209,0.000166,2]
[401493645,1768267844079,-514.84070869,0.000166,2]
[401493647,1768267844089,-1025.21475413,0.00016986,2]
[401493649,1768267844098,-81746.64048322,0.0001701,3]
[401493651,1768267844108,-2579.17784983,0.00017148,2]
[401493652,1768267844118,-533.88981491,0.00017148,2]
[401493654,1768267844129,-5042.42626027,0.00017412,2]
[401493656,1768267844148,-2258.0,0.00017688,2]
[401493658,1768267844157,-2674.60743027,0.00017696,2]
[401493660,1768267844169,-553.64373807,0.00017696,2]
[401493662,1768267844178,-151.0,0.00017955,2]
[401493664,1768267844187,-75067.17408524,0.00018,2]
[401493666,1768267844197,-41693.40887456,0.00018,5]
[401493668,1768267844207,-1000.0,0.00018042,2]
[401493670,1768267844216,-791.0,0.00018042,2]
[401493672,1768267844230,-2773.56790519,0.00018244,2]
[401493674,1768267844239,-574.12855637,0.00018244,2]
[401493676,1768267844248,-160.0,0.0001835,2]
[401493678,1768267844257,-728.0,0.0001835,2]
[401493680,1768267844268,-706.0,0.0001835,2]
[401493682,1768267844278,-151.0,0.00018461,2]
[401493684,1768267844287,-503.69009294,0.00018514,2]
[401493686,1768267844296,-172465.868485,0.00018514,2]
[401493688,1768267844307,-595.37131296,0.00018792,2]
[401493689,1768267844316,-303.10001603,0.000189,2]
[401493691,1768267844326,-151.0,0.00018966,2]
[401493693,1768267844335,-728.0,0.00019068,2]
[401493695,1768267844345,-728.0,0.00019068,2]